fUSD/lending_fUSD_20250107
["ID","MTS","AMOUNT","RATE_DAILY","PERIOD"]
[347970830,1736255445826,-2199.43,9.771e-05,2]
[347970831,1736255445836,-1345.48,9.771e-05,2]
[347970832,1736255445846,-1385.31,9.771e-05,2]
[347970833,1736255445855,-912.89,9.771e-05,2]
[347970834,1736255445866,-1468.4,9.771e-05,2]
[347970835,1736255445877,-956.11,9.771e-05,2]
[347970836,1736255445887,-646.11,9.771e-05,2]
[347970837,1736255445896,-935.77,9.771e-05,2]
[347970838,1736255445906,-591.0,9.771e-05,2]
[347970839,1736255445915,-500.0,9.772e-05,2]
[347970841,1736255445925,-500.0,9.772e-05,2]
[347970843,1736255445934,-500.0,9.772e-05,2]
[347970845,1736255445943,-500.0,9.772e-05,2]
[347970847,1736255445952,-520.83,9.772e-05,2]
[347970848,1736255445964,-500.0,9.772e-05,2]
[347970850,1736255445973,-500.0,9.772e-05,2]
[347970852,1736255445983,-500.0,9.772e-05,2]
[347970854,1736255445992,-500.0,9.772e-05,2]
[347970857,1736255446002,-500.0,9.772e-05,2]
[347970860,1736255446011,-500.0,9.772e-05,2]
[347970862,1736255446021,-501.59157746,9.772e-05,2]
[347970863,1736255446031,-541.66,9.772e-05,2]
[347970864,1736255446041,-524.4,9.772e-05,2]
[347970865,1736255446050,-541.66,9.772e-05,2]
[347970866,1736255446059,-500.0,9.772e-05,2]
[347970867,1736255446069,-500.0,9.772e-05,2]
[347970868,1736255446078,-500.0,9.772e-05,2]
[347970869,1736255446088,-500.0,9.772e-05,2]
[347970870,1736255446098,-500.0,9.772e-05,2]
[347970871,1736255446108,-500.0,9.772e-05,2]
[347970872,1736255446118,-500.0,9.772e-05,2]
[347970873,1736255446128,-500.0,9.772e-05,2]
[347970874,1736255446137,-500.0,9.772e-05,2]
[347970875,1736255446147,-500.0,9.772e-05,2]
[347970876,1736255446157,-500.0,9.772e-05,2]
[347970877,1736255446167,-500.0,9.772e-05,2]
[347970878,1736255446177,-500.0,9.772e-05,2]
[347970879,1736255446187,-500.0,9.772e-05,2]
[347970880,1736255446196,-435.78270264,9.772e-05,2]
[347970881,1736255446207,-2121.35,9.772e-05,2]
[347970882,1736255446219,-500.0,9.772e-05,2]
[347970883,1736255446229,-520.83,9.772e-05,2]
[347970884,1736255446239,-500.0,9.772e-05,2]
[347970885,1736255446249,-1659.66,9.772e-05,2]
[347970886,1736255446261,-500.0,9.772e-05,2]
[347970887,1736255446271,-519.28,9.772e-05,2]
[347970888,1736255446280,-500.0,9.772e-05,2]
[347970889,1736255446290,-500.0,9.772e-05,2]
[347970890,1736255446299,-500.0,9.772e-05,2]
[347970891,1736255446310,-500.0,9.772e-05,2]
[347970892,1736255446319,-500.0,9.772e-05,2]
[347970893,1736255446329,-500.0,9.772e-05,2]
[347970894,1736255446339,-150.0,9.772e-05,2]
[347970895,1736255446349,-500.0,9.772e-05,2]
[347970896,1736255446359,-3066.21,9.772e-05,2]
[347970897,1736255446367,-586.67,9.772e-05,2]
[347970898,1736255446377,-500.0,9.772e-05,2]
[347970899,1736255446387,-615.53450627,9.772e-05,2]
[347970900,1736255446400,-914.00549373,9.772e-05,2]
[347970901,1736255446410,-43.07475934,9.772e-05,2]
[347970902,1736255446422,-494.97524066,9.772e-05,2]
[347970903,1736255446431,-960.44,9.772e-05,2]
[347970904,1736255446440,-586.28,9.772e-05,2]
[347970906,1736255446450,-1707.69,9.772e-05,2]
[347970908,1736255446460,-500.0,9.772e-05,2]
[347970909,1736255446472,-553.9,9.772e-05,2]
[347970910,1736255446482,-2441.06,9.772e-05,2]
[347970911,1736255446492,-513.99,9.772e-05,2]
[347970912,1736255446502,-500.0,9.772e-05,2]
[347970914,1736255446512,-500.0,9.772e-05,2]
[347970916,1736255446521,-1318.63,9.772e-05,2]
[347970918,1736255446531,-500.0,9.772e-05,2]
[347970920,1736255446540,-500.0,9.772e-05,2]
[347970921,1736255446551,-549.96,9.772e-05,2]
[347970922,1736255446560,-500.0,9.772e-05,2]
[347970923,1736255446570,-2986.46,9.772e-05,2]
[347970924,1736255446580,-500.0,9.772e-05,2]
[347970925,1736255446590,-876.12,9.772e-05,2]
[347970926,1736255446599,-500.0,9.772e-05,2]
[347970927,1736255446609,-500.0,9.772e-05,2]
[347970928,1736255446618,-549.06,9.772e-05,2]
[347970929,1736255446627,-500.0,9.772e-05,2]
[347970930,1736255446636,-500.0,9.772e-05,2]
[347970931,1736255446645,-1015.08,9.772e-05,2]
[347970932,1736255446655,-682.18,9.772e-05,2]
[347970933,1736255446664,-500.0,9.772e-05,2]
[347970934,1736255446673,-500.0,9.772e-05,2]
[347970935,1736255446683,-500.0,9.772e-05,2]
[347970936,1736255446693,-500.0,9.772e-05,2]
[347970937,1736255446703,-500.0,9.772e-05,2]
[347970938,1736255446714,-2256.78,9.772e-05,2]
[347970939,1736255446723,-500.0,9.772e-05,2]
[347970940,1736255446733,-500.0,9.772e-05,2]
[347970941,1736255446743,-500.0,9.772e-05,2]
[347970942,1736255446752,-500.0,9.772e-05,2]
[347970943,1736255446761,-866.47,9.772e-05,2]
[347970944,1736255446772,-718.09,9.772e-05,2]
[347970945,1736255446782,-500.0,9.772e-05,2]
[347970946,1736255446792,-500.0,9.772e-05,2]
[347970947,1736255446802,-500.0,9.772e-05,2]
[347970948,1736255446812,-500.0,9.772e-05,2]
[347970949,1736255446822,-500.0,9.772e-05,2]
[347970950,1736255446831,-500.0,9.772e-05,2]
[347970951,1736255446841,-8300.51,9.772e-05,2]
[347970952,1736255446851,-500.0,9.772e-05,2]
[347970953,1736255446860,-585.45,9.772e-05,2]
[347970954,1736255446870,-1354.35,9.772e-05,2]
[347970955,1736255446879,-4516.91,9.772e-05,2]
[347970956,1736255446889,-904.87825245,9.772e-05,2]
[347970957,1736255446913,-1411.20174755,9.772e-05,2]
[347970958,1736255446923,-2045.79614024,9.772e-05,2]
[347970959,1736255446934,-665.98385976,9.772e-05,2]
[347970960,1736255447136,-460.80156442,9.772e-05,2]
[347970961,1736255447148,-41.54843558,9.772e-05,2]
[347970962,1736255447158,-1192.63,9.772e-05,2]
[347970963,1736255447167,-4493.26,9.772e-05,2]
[347970964,1736255447176,-1129.99,9.772e-05,2]
[347970965,1736255447185,-1270.7451786,9.772e-05,2]
[347970966,1736255447200,-78.4448214,9.772e-05,2]
[347970967,1736255447209,-620.2250866,9.772e-05,2]
[347970968,1736255447223,-450.2249134,9.772e-05,2]
[347970969,1736255447232,-1571.76,9.773e-05,2]
[347970970,1736255447241,-317.0015866,9.773e-05,2]
[347970971,1736255447261,-646.5784134,9.773e-05,2]
[347970972,1736255447270,-188.77771404,9.773e-05,2]
[347970973,1736255448163,-643.41,9.769e-05,2]
[347970974,1736255448173,-500.0,9.769e-05,2]
[347970975,1736255448183,-500.0,9.77e-05,2]
[347970976,1736255448192,-372.89,9.77e-05,2]
[347970977,1736255448203,-127.11,9.77e-05,2]
[347970978,1736255448213,-500.0,9.771e-05,2]
[347970979,1736255448224,-3588.93228596,9.773e-05,2]
[347970980,1736255448234,-3654.56,9.773e-05,2]
[347970981,1736255448244,-273.2792113,9.773e-05,2]
[347970982,1736255448287,-500.0,9.773e-05,2]
[347970983,1736255448310,-611.43732725,9.773e-05,2]
[347970984,1736255448322,-937.41564736,9.773e-05,2]
[347970985,1736255448334,-2308.89781409,9.773e-05,2]
[347970986,1736255448345,-11571.64565616,9.773e-05,2]
[347970987,1736255448362,-6365.21434384,9.773e-05,2]
[347970988,1736255448372,-2184.62,9.773e-05,2]
[347970989,1736255448382,-1855.24,9.773e-05,2]
[347970990,1736255448391,-1022.46,9.773e-05,2]
[347970991,1736255448401,-3571.69,9.773e-05,2]
[347970992,1736255448411,-6317.81,9.773e-05,2]
[347970993,1736255448421,-1069.59,9.775e-05,2]
[347970994,1736255448431,-3358.73,9.775e-05,2]
[347970995,1736255448440,-523.57,9.775e-05,2]
[347970996,1736255448449,-745.45,9.775e-05,2]
[347970997,1736255448460,-1697.48,9.775e-05,2]
[347970998,1736255448473,-1077.09,9.775e-05,2]
[347970999,1736255448484,-2238.49,9.775e-05,2]
[347971000,1736255448494,-500.0,9.775e-05,2]
[347971001,1736255448503,-1303.42,9.775e-05,2]
[347971002,1736255448513,-1630.08,9.775e-05,2]
[347971003,1736255448522,-1005.15,9.775e-05,2]
[347971004,1736255448533,-398.1758435,9.775e-05,2]
[347971005,1736255448543,-2236.08,9.775e-05,2]
[347971006,1736255448552,-150.0,9.777e-05,2]
[347971007,1736255448562,-5279.133364,9.796e-05,2]
[347971008,1736255448572,-5279.133364,9.796e-05,2]
[347971009,1736255448583,-156.126847,9.796e-05,2]
[347971010,1736255448593,-4200.397741,9.796e-05,2]
[347971011,1736255448604,-4200.397741,9.796e-05,2]
[347971012,1736255448614,-5279.133364,9.798e-05,2]
[347971013,1736255448624,-5279.133364,9.798e-05,2]
[347971014,1736255448634,-4200.397741,9.798e-05,2]
[347971015,1736255448645,-4200.397741,9.798e-05,2]
[347971016,1736255448654,-150.0,9.813e-05,2]
[347971017,1736255448664,-150.0,9.828e-05,2]
[347971018,1736255448674,-300.66,9.836e-05,2]
[347971019,1736255448684,-300.0,9.836e-05,2]
[347971020,1736255448693,-151.81,9.836e-05,2]
[347971021,1736255448703,-1958.38,9.836e-05,2]
[347971022,1736255448715,-198.13,9.836e-05,2]
[347971023,1736255448725,-151.76,9.836e-05,2]
[347971024,1736255448735,-150.0,9.836e-05,2]
[347971025,1736255448744,-437.01,9.836e-05,2]
[347971026,1736255448754,-182.89,9.836e-05,2]
[347971027,1736255448764,-150.0,9.836e-05,2]
[347971028,1736255448773,-150.0,9.836e-05,2]
[347971029,1736255448785,-979.45,9.836e-05,2]
[347971030,1736255448795,-437.01,9.836e-05,2]
[347971031,1736255448806,-150.0,9.836e-05,2]
[347971032,1736255448817,-979.45,9.836e-05,2]
[347971033,1736255448827,-182.89,9.836e-05,2]
[347971034,1736255448837,-150.0,9.836e-05,2]
[347971035,1736255448847,-150.0,9.836e-05,2]
[347971036,1736255448857,-181.74,9.836e-05,2]
[347971037,1736255448867,-150.0,9.836e-05,2]
[347971038,1736255448877,-873.32,9.836e-05,2]
[347971039,1736255448886,-437.01,9.836e-05,2]
[347971040,1736255448896,-150.0,9.836e-05,2]
[347971041,1736255448905,-150.0,9.836e-05,2]
[347971042,1736255448915,-849.64,9.836e-05,2]
[347971043,1736255448925,-150.0,9.836e-05,2]
[347971044,1736255448935,-150.0,9.836e-05,2]
[347971045,1736255448945,-437.01,9.836e-05,2]
[347971046,1736255448955,-150.0,9.836e-05,2]
[347971047,1736255448966,-155.51,9.836e-05,2]
[347971048,1736255448976,-150.0,9.859e-05,2]
[347971049,1736255448986,-150.0,9.86e-05,2]
[347971050,1736255448996,-2950.447,9.864e-05,2]
[347971051,1736255449005,-179.093,9.882e-05,2]
[347971052,1736255449015,-150.0,9.884e-05,2]
[347971053,1736255449025,-5279.133364,9.895e-05,2]
[347971054,1736255449035,-156.126847,9.895e-05,2]
[347971055,1736255449045,-4200.397741,9.895e-05,2]
[347971056,1736255449055,-5279.133364,9.896e-05,2]
[347971057,1736255449065,-4200.397741,9.896e-05,2]
[347971058,1736255449074,-5279.133364,9.897e-05,2]
[347971059,1736255449084,-5279.133364,9.897e-05,2]
[347971060,1736255449093,-156.126847,9.897e-05,2]
[347971061,1736255449103,-460.37520417,9.897e-05,2]
[347971062,1736255449115,-324.686543,9.897e-05,2]
[347971063,1736255449127,-925.43211547,9.897e-05,2]
[347971064,1736255449140,-261.43160962,9.897e-05,2]
[347971065,1736255449167,-384.8,9.897e-05,2]
[347971066,1736255449194,-1843.67226874,9.897e-05,2]
[347971067,1736255449204,-2543.26981676,9.897e-05,2]
[347971068,1736255449216,-1657.12792424,9.897e-05,2]
[347971069,1736255449225,-5279.133364,9.898e-05,2]
[347971070,1736255449235,-1885.28234119,9.898e-05,2]
[347971071,1736255449247,-3393.85102281,9.898e-05,2]
[347971072,1736255449257,-156.126847,9.898e-05,2]
[347971073,1736255449267,-4200.397741,9.898e-05,2]
[347971074,1736255449278,-3009.62428919,9.898e-05,2]
[347971075,1736255449289,-382.8500135,9.898e-05,2]
[347971076,1736255449728,-399.71004,9.769e-05,2]
[347971077,1736255449740,-100.28996,9.769e-05,2]
[347971078,1736255449749,-500.0,9.769e-05,2]
[347971079,1736255449759,-500.0,9.77e-05,2]
[347971080,1736255449769,-807.92343831,9.898e-05,2]
[347971081,1736255449779,-513.48340169,9.899e-05,2]
[347971082,1736255449791,-445.419,9.899e-05,2]
[347971083,1736255449811,-4320.23096231,9.899e-05,2]
[347971084,1736255449821,-5279.133364,9.899e-05,2]
[347971085,1736255449831,-4200.397741,9.899e-05,2]
[347971086,1736255449842,-4200.397741,9.899e-05,2]
[347971087,1736255449852,-150.0,9.907e-05,2]
[347971088,1736255449861,-150.0,9.907e-05,2]
[347971089,1736255449871,-150.0,9.93e-05,2]
[347971090,1736255449881,-276.367,9.93e-05,2]
[347971091,1736255449890,-164.76,9.93e-05,2]
[347971092,1736255449899,-180.073,9.93e-05,2]
[347971093,1736255449908,-150.0,9.93e-05,2]
[347971094,1736255449918,-151.802,9.93e-05,2]
[347971095,1736255449927,-1267.0,9.93e-05,2]
[347971096,1736255449936,-2014.0,9.93e-05,2]
[347971097,1736255449946,-150.0,9.93e-05,2]
[347971098,1736255449956,-634.0,9.93e-05,2]
[347971099,1736255449968,-1860.0,9.93e-05,2]
[347971100,1736255449978,-819.0,9.93e-05,2]
[347971101,1736255449988,-3775.0,9.93e-05,2]
[347971102,1736255449998,-918.0,9.93e-05,2]
[347971103,1736255450007,-1258.0,9.93e-05,2]
[347971104,1736255450018,-537.0,9.93e-05,2]
[347971105,1736255450028,-1384.8381918,9.93e-05,2]
[347971106,1736255450214,-2337.1618082,9.93e-05,2]
[347971107,1736255450263,-268.78413547,9.931e-05,2]
[347971108,1736255450273,-192.90400355,9.946e-05,2]
[347971109,1736255450283,-21508.36835619,9.948e-05,2]
[347971110,1736255450295,-7236.95456611,9.948e-05,2]
[347971111,1736255450305,-150.0,9.956e-05,2]
[347971112,1736255450315,-150.0,9.962e-05,2]
[347971113,1736255450325,-240.52247391,9.973e-05,2]
[347971114,1736255450335,-500.0,9.973e-05,2]
[347971115,1736255450345,-161.69360999,9.973e-05,2]
[347971116,1736255450355,-1242.68876409,9.999e-05,3]
[347971117,1736255450365,-587.42,9.999e-05,2]
[347971118,1736255450374,-717.0,0.0001,2]
[347971119,1736255450384,-33171.0441419,0.0001,2]
[347971120,1736255450395,-13444.53837763,0.0001,2]
[347971121,1736255450407,-39677.72184781,0.0001,2]
[347971122,1736255450416,-24940.56164955,0.0001,2]
[347971123,1736255450428,-13191.61799893,0.0001,2]
[347971124,1736255450439,-36188.99825118,0.0001,2]
[347971125,1736255450448,-39342.37432092,0.0001,2]
[347971126,1736255450459,-214280.68478987,0.0001,2]
[347971127,1736255450475,-5570.45453968,0.0001,2]
[347971128,1736255450487,-5061.80615512,0.0001,2]
[347971129,1736255450499,-353.526063,0.0001,2]
[347971130,1736255450510,-373.8655008,0.0001,2]
[347971131,1736255450522,-27395.28345955,0.0001,2]
[347971132,1736255450533,-61037.64,0.0001,2]
[347971133,1736255450542,-3000.0,0.0001,2]
[347971134,1736255450551,-70827.07653995,0.0001,2]
[347971135,1736255450563,-755.60676301,0.0001,2]
[347971136,1736255450574,-174981.7865505,0.0001,2]
[347971137,1736255450586,-7919.53467144,0.0001,2]
[347971138,1736255450611,-20044.15111219,0.0001,2]
[347971139,1736255450623,-2371.2957635,0.0001,2]
[347971140,1736255450634,-2996.61865781,0.0001,2]
[347971141,1736255450649,-3284.46134245,0.0001,2]
[347971142,1736255450823,-2516.87912024,0.0001,2]
[347971143,1736255450834,-3609.29979278,0.0001,2]
[347971144,1736255450846,-4508.5399997,0.0001,2]
[347971147,1736255579387,-2452.27,0.000129,31]
[347971148,1736255579411,-47.73,0.000129,31]
[347971149,1736255591417,-2404.54,0.000129,31]
[347971150,1736255591441,-2452.27,0.000129,31]
[347971151,1736255591467,-2452.27,0.000129,31]
[347971152,1736255591490,-2452.27,0.000129,31]
[347971153,1736255591514,-2452.27,0.000129,31]
[347971154,1736255591536,-2452.27,0.000129,31]
[347971155,1736255591561,-2452.27,0.000129,31]
[347971156,1736255591591,-2452.27,0.000129,31]
[347971157,1736255591615,-2452.27,0.000129,31]
[347971158,1736255591641,-2452.27,0.000129,31]
[347971159,1736255591666,-525.03,0.000129,31]
[347971160,1736255703797,215.0,0.0001,30]
[347971161,1736256003331,216.0,0.0001,30]
[347971162,1736256259154,775.0,0.0002,120]
[347971166,1736256500747,1352.38162083,0.00012,30]
[347971200,1736256632268,-1000.0,8e-05,2]
[347971203,1736256632391,-30411.53,8e-05,2]
[347971204,1736256632404,-61714.27900426,8e-05,2]
[347971205,1736256632414,-250.0,8.221e-05,2]
[347971206,1736256632424,-250.0,8.295e-05,2]
[347971207,1736256632434,-24257.85506039,8.309e-05,2]
[347971208,1736256632444,-413.78,8.309e-05,2]
[347971209,1736256632454,-193.02,8.333e-05,2]
[347971210,1736256632463,-1000.0,8.343e-05,2]
[347971211,1736256632473,-494.03,8.389e-05,2]
[347971212,1736256632482,-1384.31,8.525e-05,2]
[347971213,1736256632492,-1000.67,8.567e-05,2]
[347971214,1736256632501,-1243.37,8.674e-05,2]
[347971215,1736256632511,-500.0,8.685e-05,2]
[347971216,1736256632524,-162.97,8.719e-05,2]
[347971217,1736256632533,-250.0,8.728e-05,2]
[347971218,1736256632543,-1100.0,8.768e-05,2]
[347971219,1736256632552,-500.0,8.795e-05,2]
[347971220,1736256632562,-1500.0,8.858e-05,2]
[347971221,1736256632571,-500.0,8.861e-05,2]
[347971222,1736256632581,-263.77,8.895e-05,2]
[347971223,1736256632590,-5129.52896734,8.895e-05,2]
[347971224,1736256632632,-503.95,8.895e-05,2]
[347971225,1736256632643,-746.82209386,8.895e-05,2]
[347971226,1736256632654,-3457.87183613,8.895e-05,2]
[347971227,1736256632665,-14359.22710267,8.895e-05,2]
[347971228,1736256632675,-23900.0,8.922e-05,2]
[347971229,1736256632685,-150.0,9.049e-05,2]
[347971230,1736256632695,-150.0,9.049e-05,2]
[347971231,1736256632704,-150.0,9.049e-05,2]
[347971232,1736256632714,-150.0,9.049e-05,2]
[347971233,1736256632723,-150.0,9.25e-05,2]
[347971234,1736256632732,-150.0,9.301e-05,2]
[347971235,1736256632742,-2479.4673,9.325e-05,2]
[347971236,1736256632751,-150.0,9.384e-05,2]
[347971238,1736256632761,-150.0,9.384e-05,2]
[347971240,1736256632772,-1000.0,9.386e-05,2]
[347971242,1736256632782,-771.88,9.425e-05,2]
[347971244,1736256632791,-437.76,9.425e-05,2]
[347971246,1736256632800,-771.88,9.425e-05,2]
[347971248,1736256632809,-437.76,9.425e-05,2]
[347971250,1736256632819,-437.76,9.425e-05,2]
[347971252,1736256632829,-771.88,9.425e-05,2]
[347971254,1736256632838,-771.88,9.425e-05,2]
[347971256,1736256632847,-72.6153488,9.425e-05,2]
[347971264,1736256632913,-365.1446512,9.425e-05,2]
[347971266,1736256632922,-437.76,9.425e-05,2]
[347971268,1736256632931,-771.88,9.425e-05,2]
[347971270,1736256632940,-437.76,9.425e-05,2]
[347971272,1736256632950,-771.88,9.425e-05,2]
[347971274,1736256632959,-437.76,9.425e-05,2]
[347971276,1736256632968,-771.88,9.425e-05,2]
[347971278,1736256632978,-753.59,9.425e-05,2]
[347971280,1736256632987,-250.68899556,9.425e-05,2]
[347971293,1736256633071,-186.04100444,9.425e-05,2]
[347971295,1736256633086,-437.76,9.425e-05,2]
[347971297,1736256633095,-771.27,9.425e-05,2]
[347971299,1736256633105,-437.76,9.425e-05,2]
[347971301,1736256633114,-437.17,9.425e-05,2]
[347971303,1736256633125,-150.0,9.452e-05,2]
[347971305,1736256633135,-150.0,9.552e-05,2]
[347971307,1736256633145,-1000.67,9.638e-05,2]
[347971309,1736256633156,-150.0,9.653e-05,2]
[347971311,1736256633166,-643.3535249,9.667e-05,2]
[347971316,1736256633210,-4356.6464751,9.667e-05,2]
[347971318,1736256633220,-35610.2308,9.669e-05,2]
[347971320,1736256633230,-500.0,9.698e-05,2]
[347971322,1736256633239,-2990.71,9.699e-05,2]
[347971324,1736256633250,-2258.95,9.699e-05,2]
[347971326,1736256633260,-1881.36,9.699e-05,2]
[347971328,1736256633271,-748.73,9.699e-05,2]
[347971330,1736256633280,-7318.1,9.699e-05,2]
[347971332,1736256633292,-4488.76,9.699e-05,2]
[347971334,1736256633302,-11445.64,9.699e-05,2]
[347971336,1736256633312,-5684.24,9.699e-05,2]
[347971338,1736256633322,-95.34641045,9.699e-05,2]
[347971706,1736256638208,-830.1,8.219e-05,2]
[347971707,1736256638218,-185.93286395,9.698e-05,2]
[347971708,1736256638228,-404.65358955,9.699e-05,2]
[347971709,1736256638237,-2560.95,9.699e-05,2]
[347971710,1736256638247,-2759.63,9.699e-05,2]
[347971711,1736256638258,-640.69,9.699e-05,2]
[347971712,1736256638269,-865.02,9.699e-05,2]
[347971713,1736256638279,-623.05,9.699e-05,2]
[347971714,1736256638289,-500.0,9.699e-05,2]
[347971715,1736256638299,-2601.5,9.699e-05,2]
[347971716,1736256638308,-2427.0,9.699e-05,2]
[347971717,1736256638318,-781.07,9.699e-05,2]
[347971718,1736256638328,-690.39,9.699e-05,2]
[347971719,1736256638337,-1091.89,9.699e-05,2]
[347971720,1736256638346,-500.0,9.699e-05,2]
[347971721,1736256638355,-1685.2,9.699e-05,2]
[347971722,1736256638364,-1021.32,9.699e-05,2]
[347971723,1736256638373,-544.20346807,9.699e-05,2]
[347971724,1736256638382,-500.0,9.699e-05,2]
[347971725,1736256638391,-500.0,9.699e-05,2]
[347971726,1736256638401,-500.0,9.699e-05,2]
[347971727,1736256638409,-500.0,9.699e-05,2]
[347971728,1736256638419,-1000.0,9.7e-05,2]
[347971729,1736256638429,-1000.0,9.7e-05,2]
[347971730,1736256638439,-1000.0,9.7e-05,2]
[347971731,1736256638449,-1000.0,9.7e-05,2]
[347971732,1736256638458,-1000.0,9.7e-05,2]
[347971733,1736256638467,-1000.0,9.7e-05,2]
[347971734,1736256638477,-1000.0,9.7e-05,3]
[347971735,1736256638486,-1000.0,9.7e-05,3]
[347971736,1736256638495,-486.0,9.7e-05,2]
[347971737,1736256638505,-980.70352803,9.7e-05,2]
[347971738,1736256638527,-19.29647197,9.7e-05,2]
[347971739,1736256638536,-1000.0,9.7e-05,2]
[347971740,1736256638546,-957.84213619,9.7e-05,2]
[347971745,1736256638599,-5957.54659657,9.7e-05,2]
[347971748,1736256638611,-3367.6749909,9.7e-05,2]
[347971750,1736256638628,-12994.7547223,9.7e-05,2]
[347971762,1736256640363,-600.73,9.699e-05,2]
[347971763,1736256640373,-1000.21887298,9.7e-05,2]
[347971931,1736256643318,-733.2,9.699e-05,2]
[347971932,1736256643328,-2996.54,9.699e-05,2]
[347971933,1736256643337,-500.0,9.699e-05,2]
[347971934,1736256643347,-225721.96268106,9.7e-05,2]
[347971935,1736256643357,-150.0,9.72e-05,2]
[347971936,1736256643366,-150.0,9.72e-05,2]
[347971937,1736256643375,-500.0,9.767e-05,2]
[347971938,1736256643384,-1769.22,9.767e-05,2]
[347971939,1736256643394,-537.53,9.767e-05,2]
[347971940,1736256643403,-599.82,9.767e-05,2]
[347971941,1736256643412,-656.42,9.767e-05,2]
[347971942,1736256643421,-637.13,9.767e-05,2]
[347971943,1736256643431,-500.0,9.767e-05,2]
[347971944,1736256643440,-500.0,9.767e-05,2]
[347971945,1736256643449,-1503.13,9.767e-05,2]
[347971946,1736256643458,-1837.63,9.767e-05,2]
[347971947,1736256643468,-1872.83,9.767e-05,2]
[347971948,1736256643477,-1114.99,9.767e-05,2]
[347971949,1736256643486,-500.0,9.767e-05,2]
[347971950,1736256643497,-969.86,9.767e-05,2]
[347971951,1736256643506,-745.27,9.767e-05,2]
[347971952,1736256643515,-984.09,9.767e-05,2]
[347971953,1736256643527,-598.99,9.767e-05,2]
[347971954,1736256643535,-500.0,9.767e-05,2]
[347971955,1736256643545,-500.0,9.767e-05,2]
[347971956,1736256643555,-500.0,9.767e-05,2]
[347971961,1736256643800,-500.0,9.767e-05,2]
[347971962,1736256643811,-500.0,9.767e-05,2]
[347971963,1736256643821,-1788.99,9.767e-05,2]
[347971964,1736256643830,-507.98,9.767e-05,2]
[347971965,1736256643840,-500.0,9.767e-05,2]
[347971966,1736256643849,-500.0,9.767e-05,2]
[347971967,1736256643859,-500.0,9.767e-05,2]
[347971968,1736256643869,-695.82,9.767e-05,2]
[347971969,1736256643879,-500.0,9.767e-05,2]
[347971970,1736256643888,-2139.54,9.767e-05,2]
[347971971,1736256643898,-2065.25,9.767e-05,2]
[347971972,1736256643907,-500.0,9.767e-05,2]
[347971973,1736256643916,-500.0,9.767e-05,2]
[347971974,1736256643926,-500.0,9.767e-05,2]
[347971975,1736256643935,-500.0,9.767e-05,2]
[347971976,1736256643944,-667.17,9.767e-05,2]
[347971977,1736256643953,-538.26,9.767e-05,2]
[347971978,1736256643962,-598.99,9.767e-05,2]
[347971979,1736256643972,-343.84492033,9.767e-05,2]
[347971980,1736256643981,-500.0,9.767e-05,2]
[347971981,1736256643990,-663.35,9.767e-05,2]
[347971982,1736256643999,-523.16,9.767e-05,2]
[347971983,1736256644008,-803.07,9.767e-05,2]
[347971984,1736256644017,-500.0,9.767e-05,2]
[347971985,1736256644028,-525.32,9.767e-05,2]
[347971986,1736256644038,-571.52,9.767e-05,2]
[347971987,1736256644047,-537.72,9.767e-05,2]
[347971988,1736256644056,-1019.22,9.767e-05,2]
[347971989,1736256644066,-2488.51,9.767e-05,2]
[347971990,1736256644075,-672.95,9.767e-05,2]
[347971991,1736256644088,-500.0,9.767e-05,2]
[347971992,1736256644097,-1476.25,9.767e-05,2]
[347971993,1736256644107,-1123.12,9.767e-05,2]
[347971994,1736256644116,-500.0,9.767e-05,2]
[347971995,1736256644125,-1098.86,9.767e-05,2]
[347971996,1736256644135,-2492.04,9.767e-05,2]
[347971997,1736256644144,-826.17,9.767e-05,2]
[347971998,1736256644153,-722.41,9.767e-05,2]
[347971999,1736256644163,-2003.86,9.767e-05,2]
[347972000,1736256644172,-2561.57,9.767e-05,2]
[347972001,1736256644182,-681.94,9.767e-05,2]
[347972002,1736256644191,-995.81,9.767e-05,2]
[347972003,1736256644200,-1869.98,9.767e-05,2]
[347972004,1736256644209,-598.99,9.767e-05,2]